[Event "Titled Tuesday Blitz March 15 Early 2022"]
[White "Gaehwiler, Gabriel"]
[Black "Xiong, Jeffery"]
[WhiteFideId "1314530"]
[BlackFideId "2047640"]
[WhiteElo "2824"]
[BlackElo "2993"]
[Result "1/2-1/2"]
[Round "05"]
[TimeControl "180+1"]
[Date "2022.03.15"]
[WhiteClock "0:00:05"]
[BlackClock "0:00:44"]

1. d4 {[%clk 0:02:50]}  d5 {[%clk 0:02:59]} 2. c4 {[%clk 0:02:48]}  e6 {[%clk 0:02:59]} 3. Nf3 {[%clk 0:02:48]}  Nf6 {[%clk 0:02:59]} 4. g3 {[%clk 0:02:48]}  dxc4 {[%clk 0:02:59]} 5. Bg2 {[%clk 0:02:47]}  c6 {[%clk 0:02:59]} 6. O-O {[%clk 0:02:40]}  b5 {[%clk 0:02:58]} 7. Ne5 {[%clk 0:02:37]}  Bb7 {[%clk 0:02:57]} 8. a4 {[%clk 0:02:35]}  Qb6 {[%clk 0:02:52]} 9. b3 {[%clk 0:02:28]}  cxb3 {[%clk 0:02:51]} 10. Qxb3 {[%clk 0:02:24]}  Bd6 {[%clk 0:02:18]} 11. Bb2 {[%clk 0:02:20]}  bxa4 {[%clk 0:02:14]} 12. Qc2 {[%clk 0:02:10]}  Qb3 {[%clk 0:02:11]} 13. Qc1 {[%clk 0:02:00]}  c5 {[%clk 0:01:44]} 14. Nc4 {[%clk 0:01:47]}  Bc7 {[%clk 0:01:30]} 15. Ra3 {[%clk 0:01:21]}  Qb4 {[%clk 0:01:27]} 16. Bc3 {[%clk 0:01:08]}  Qb5 {[%clk 0:01:26]} 17. Bxb7 {[%clk 0:01:05]}  Qxb7 {[%clk 0:01:25]} 18. dxc5 {[%clk 0:01:05]}  Nbd7 {[%clk 0:01:22]} 19. Bxf6 {[%clk 0:00:55]}  Nxf6 {[%clk 0:01:22]} 20. Rxa4 {[%clk 0:00:52]}  Qc6 {[%clk 0:01:22]} 21. Qa3 {[%clk 0:00:49]}  O-O {[%clk 0:01:21]} 22. Nc3 {[%clk 0:00:46]}  Nd7 {[%clk 0:01:15]} 23. Ra6 {[%clk 0:00:38]}  Qxc5 {[%clk 0:01:14]} 24. Qxc5 {[%clk 0:00:38]}  Nxc5 {[%clk 0:01:15]} 25. Rc6 {[%clk 0:00:38]}  Bb6 {[%clk 0:01:16]} 26. Nxb6 {[%clk 0:00:38]}  axb6 {[%clk 0:01:16]} 27. Rxb6 {[%clk 0:00:39]}  Ra3 {[%clk 0:01:15]} 28. Nd1 {[%clk 0:00:29]}  Ra2 {[%clk 0:01:12]} 29. Re1 {[%clk 0:00:27]}  h6 {[%clk 0:01:04]} 30. Ne3 {[%clk 0:00:27]}  Ne4 {[%clk 0:01:04]} 31. Rb4 {[%clk 0:00:26]}  Nc3 {[%clk 0:01:04]} 32. Kf1 {[%clk 0:00:22]}  Rd8 {[%clk 0:00:59]} 33. Rc4 {[%clk 0:00:22]}  Nb5 {[%clk 0:00:59]} 34. Rc5 {[%clk 0:00:20]}  Rb2 {[%clk 0:00:56]} 35. Nc4 {[%clk 0:00:19]}  Rb4 {[%clk 0:00:56]} 36. Ne3 {[%clk 0:00:20]}  Rd2 {[%clk 0:00:55]} 37. Rc8+ {[%clk 0:00:17]}  Kh7 {[%clk 0:00:55]} 38. Rb8 {[%clk 0:00:18]}  Rdb2 {[%clk 0:00:50]} 39. Nd1 {[%clk 0:00:16]}  Rb1 {[%clk 0:00:49]} 40. Rb7 {[%clk 0:00:15]}  Nd4 {[%clk 0:00:47]} 41. Rxb4 {[%clk 0:00:12]}  Rxb4 {[%clk 0:00:48]} 42. Ne3 {[%clk 0:00:11]}  Rb2 {[%clk 0:00:47]} 43. Nc4 {[%clk 0:00:11]}  Rc2 {[%clk 0:00:47]} 44. Ne3 {[%clk 0:00:11]}  Ra2 {[%clk 0:00:47]} 45. Nc4 {[%clk 0:00:11]}  h5 {[%clk 0:00:47]} 46. Ne5 {[%clk 0:00:12]}  f6 {[%clk 0:00:47]} 47. Nf3 {[%clk 0:00:12]}  Nf5 {[%clk 0:00:46]} 48. Rd1 {[%clk 0:00:12]}  e5 {[%clk 0:00:47]} 49. e3 {[%clk 0:00:10]}  Nh6 {[%clk 0:00:45]} 50. h3 {[%clk 0:00:10]}  Nf7 {[%clk 0:00:45]} 51. Rd7 {[%clk 0:00:09]}  Kg8 {[%clk 0:00:45]} 52. Rc7 {[%clk 0:00:08]}  e4 {[%clk 0:00:44]} 53. Nd4 {[%clk 0:00:08]}  Ng5 {[%clk 0:00:44]} 54. Kg2 {[%clk 0:00:05]} 1/2-1/2


[Site "https://www.chess.com"]

[Event "Titled Tuesday Blitz March 15 Early 2022"]
[White "Garagulya, Konstantin"]
[Black "Nagy, Gabor"]
[WhiteFideId "4128931"]
[BlackFideId "737119"]
[WhiteElo "2329"]
[BlackElo "2534"]
[Result "0-1"]
[Round "05"]
[TimeControl "180+1"]
[Date "2022.03.15"]
[WhiteClock "0:00:02"]
[BlackClock "0:00:50"]

1. d4 {[%clk 0:02:56]}  g6 {[%clk 0:02:56]} 2. e4 {[%clk 0:02:55]}  Bg7 {[%clk 0:02:57]} 3. Nf3 {[%clk 0:02:56]}  d6 {[%clk 0:02:57]} 4. Bc4 {[%clk 0:02:56]}  Nf6 {[%clk 0:02:57]} 5. e5 {[%clk 0:02:57]}  dxe5 {[%clk 0:02:57]} 6. Nxe5 {[%clk 0:02:58]}  O-O {[%clk 0:02:56]} 7. O-O {[%clk 0:02:58]}  c5 {[%clk 0:02:46]} 8. dxc5 {[%clk 0:02:57]}  Qc7 {[%clk 0:02:45]} 9. Nd3 {[%clk 0:02:54]}  Nbd7 {[%clk 0:02:40]} 10. Be3 {[%clk 0:02:52]}  b6 {[%clk 0:02:33]} 11. Nd2 {[%clk 0:02:37]}  Nxc5 {[%clk 0:02:30]} 12. Nxc5 {[%clk 0:02:36]}  Ng4 {[%clk 0:02:27]} 13. g3 {[%clk 0:02:01]}  Nxe3 {[%clk 0:02:25]} 14. fxe3 {[%clk 0:02:00]}  Qxc5 {[%clk 0:02:25]} 15. Qf3 {[%clk 0:02:01]}  Bh3 {[%clk 0:02:17]} 16. Rf2 {[%clk 0:01:51]}  Be6 {[%clk 0:01:55]} 17. Qe4 {[%clk 0:00:56]}  Bf5 {[%clk 0:01:48]} 18. Qd5 {[%clk 0:00:49]}  Qxd5 {[%clk 0:01:46]} 19. Bxd5 {[%clk 0:00:49]}  Rad8 {[%clk 0:01:47]} 20. e4 {[%clk 0:00:49]}  Bxb2 {[%clk 0:01:42]} 21. Raf1 {[%clk 0:00:28]}  Bd4 {[%clk 0:01:40]} 22. Kg2 {[%clk 0:00:10]}  Bxf2 {[%clk 0:01:39]} 23. Rxf2 {[%clk 0:00:11]}  Bd7 {[%clk 0:01:36]} 24. Nf3 {[%clk 0:00:09]}  e6 {[%clk 0:01:35]} 25. Bb7 {[%clk 0:00:08]}  Rb8 {[%clk 0:01:34]} 26. Ba6 {[%clk 0:00:09]}  Bc6 {[%clk 0:01:34]} 27. Bd3 {[%clk 0:00:06]}  f6 {[%clk 0:01:33]} 28. g4 {[%clk 0:00:06]}  e5 {[%clk 0:01:33]} 29. Kg3 {[%clk 0:00:07]}  Kg7 {[%clk 0:01:33]} 30. h4 {[%clk 0:00:08]}  Rbd8 {[%clk 0:01:31]} 31. g5 {[%clk 0:00:08]}  fxg5 {[%clk 0:01:30]} 32. hxg5 {[%clk 0:00:08]}  Rde8 {[%clk 0:01:26]} 33. Rh2 {[%clk 0:00:08]}  Bd7 {[%clk 0:01:21]} 34. Rh4 {[%clk 0:00:08]}  Rf4 {[%clk 0:01:20]} 35. Rh2 {[%clk 0:00:08]}  Rg4+ {[%clk 0:01:19]} 36. Kf2 {[%clk 0:00:08]}  Be6 {[%clk 0:01:18]} 37. Ke3 {[%clk 0:00:08]}  Bxa2 {[%clk 0:01:16]} 38. Rh1 {[%clk 0:00:08]}  Rg3 {[%clk 0:01:13]} 39. Kf2 {[%clk 0:00:07]}  Rg4 {[%clk 0:01:13]} 40. Ra1 {[%clk 0:00:07]}  Bf7 {[%clk 0:01:09]} 41. Rxa7 {[%clk 0:00:07]}  Kf8 {[%clk 0:01:02]} 42. Rb7 {[%clk 0:00:07]}  Re6 {[%clk 0:00:54]} 43. Bc4 {[%clk 0:00:02]}  Re7 {[%clk 0:00:54]} 44. Rb8+ {[%clk 0:00:02]}  Kg7 {[%clk 0:00:54]} 45. Bd3 {[%clk 0:00:02]}  h5 {[%clk 0:00:50]} 0-1


[Site "https://www.chess.com"]

[Event "Titled Tuesday Blitz March 15 Early 2022"]
[White "Goriatchkin, Jouri"]
[Black "P., Komal Kishore"]
[WhiteFideId "4120183"]
[BlackFideId "5016703"]
[WhiteElo "966"]
[BlackElo "2122"]
[Result "0-1"]
[Round "05"]
[TimeControl "180+1"]
[Date "2022.03.15"]
[WhiteClock "0:00:04"]
[BlackClock "0:01:14"]

1. d4 {[%clk 0:03:00]}  d5 {[%clk 0:02:59]} 2. c4 {[%clk 0:03:00]}  c6 {[%clk 0:02:58]} 3. e3 {[%clk 0:02:59]}  Nf6 {[%clk 0:02:57]} 4. Nc3 {[%clk 0:02:59]}  Bf5 {[%clk 0:02:53]} 5. cxd5 {[%clk 0:02:56]}  cxd5 {[%clk 0:02:49]} 6. Qb3 {[%clk 0:02:29]}  Qb6 {[%clk 0:02:44]} 7. Qxb6 {[%clk 0:02:13]}  axb6 {[%clk 0:02:41]} 8. Nf3 {[%clk 0:02:09]}  e6 {[%clk 0:02:39]} 9. Bb5+ {[%clk 0:02:01]}  Nc6 {[%clk 0:02:29]} 10. O-O {[%clk 0:01:45]}  Bd6 {[%clk 0:02:25]} 11. a3 {[%clk 0:01:28]}  O-O {[%clk 0:02:20]} 12. Bd2 {[%clk 0:01:25]}  Rfc8 {[%clk 0:02:18]} 13. Rac1 {[%clk 0:01:22]}  Na5 {[%clk 0:02:17]} 14. Na4 {[%clk 0:01:11]}  Rxc1 {[%clk 0:02:11]} 15. Rxc1 {[%clk 0:01:08]}  Nb3 {[%clk 0:02:10]} 16. Rc3 {[%clk 0:00:53]}  Nxd2 {[%clk 0:02:02]} 17. Nxd2 {[%clk 0:00:49]}  Ra5 {[%clk 0:01:57]} 18. Rc8+ {[%clk 0:00:22]}  Bf8 {[%clk 0:01:55]} 19. Nxb6 {[%clk 0:00:08]}  Rxb5 {[%clk 0:01:52]} 20. Na4 {[%clk 0:00:07]}  e5 {[%clk 0:01:46]} 21. Rc1 {[%clk 0:00:06]}  exd4 {[%clk 0:01:44]} 22. exd4 {[%clk 0:00:06]}  h6 {[%clk 0:01:40]} 23. Nc3 {[%clk 0:00:07]}  Rxb2 {[%clk 0:01:37]} 24. Nf3 {[%clk 0:00:04]}  Rc2 {[%clk 0:01:32]} 25. Rxc2 {[%clk 0:00:05]}  Bxc2 {[%clk 0:01:29]} 26. Ne5 {[%clk 0:00:04]}  Bxa3 {[%clk 0:01:23]} 27. Nb5 {[%clk 0:00:03]}  Bb2 {[%clk 0:01:20]} 28. Kf1 {[%clk 0:00:03]}  Ng4 {[%clk 0:01:15]} 29. h3 {[%clk 0:00:03]}  Nxe5 {[%clk 0:01:14]} 30. Ke2 {[%clk 0:00:04]} 0-1


[Site "https://www.chess.com"]

[Event "Titled Tuesday Blitz March 15 Early 2022"]
[White "Goryachkina, Aleksandra"]
[Black "Babazada, Khazar"]
[WhiteFideId "4147103"]
[BlackFideId "13413554"]
[WhiteElo "2426"]
[BlackElo "2418"]
[Result "0-1"]
[Round "05"]
[TimeControl "180+1"]
[Date "2022.03.15"]
[WhiteClock "0:00:01"]
[BlackClock "0:00:10"]

1. e4 {[%clk 0:02:59]}  Nf6 {[%clk 0:02:51]} 2. e5 {[%clk 0:02:58]}  Nd5 {[%clk 0:02:52]} 3. d4 {[%clk 0:02:58]}  d6 {[%clk 0:02:52]} 4. Nf3 {[%clk 0:02:58]}  Nb6 {[%clk 0:02:52]} 5. Be2 {[%clk 0:02:48]}  g6 {[%clk 0:02:51]} 6. O-O {[%clk 0:02:43]}  Bg7 {[%clk 0:02:52]} 7. exd6 {[%clk 0:02:28]}  cxd6 {[%clk 0:02:48]} 8. h3 {[%clk 0:02:26]}  O-O {[%clk 0:02:47]} 9. c4 {[%clk 0:02:26]}  Bf5 {[%clk 0:02:45]} 10. Nc3 {[%clk 0:02:24]}  Nc6 {[%clk 0:02:25]} 11. Be3 {[%clk 0:02:24]}  d5 {[%clk 0:02:25]} 12. c5 {[%clk 0:02:16]}  Nc4 {[%clk 0:02:24]} 13. Bxc4 {[%clk 0:01:36]}  dxc4 {[%clk 0:02:25]} 14. d5 {[%clk 0:01:36]}  Nb4 {[%clk 0:02:24]} 15. a3 {[%clk 0:01:28]}  Nc2 {[%clk 0:02:22]} 16. Rc1 {[%clk 0:01:26]}  Nxe3 {[%clk 0:02:16]} 17. fxe3 {[%clk 0:01:27]}  Bd3 {[%clk 0:02:16]} 18. Re1 {[%clk 0:01:25]}  a5 {[%clk 0:02:08]} 19. Qd2 {[%clk 0:01:10]}  Qc7 {[%clk 0:02:05]} 20. b4 {[%clk 0:01:09]}  axb4 {[%clk 0:02:02]} 21. axb4 {[%clk 0:01:10]}  b6 {[%clk 0:01:30]} 22. c6 {[%clk 0:01:05]}  b5 {[%clk 0:01:30]} 23. Nxb5 {[%clk 0:00:51]}  Qb6 {[%clk 0:01:30]} 24. Nbd4 {[%clk 0:00:43]}  Rfd8 {[%clk 0:01:29]} 25. Ra1 {[%clk 0:00:31]}  Rxa1 {[%clk 0:01:22]} 26. Rxa1 {[%clk 0:00:30]}  Be4 {[%clk 0:01:15]} 27. b5 {[%clk 0:00:21]}  Qc5 {[%clk 0:00:54]} 28. Qa5 {[%clk 0:00:18]}  Qxd5 {[%clk 0:00:52]} 29. b6 {[%clk 0:00:17]}  Qd6 {[%clk 0:00:49]} 30. c7 {[%clk 0:00:17]}  Rf8 {[%clk 0:00:47]} 31. Rc1 {[%clk 0:00:10]}  e5 {[%clk 0:00:44]} 32. Nb5 {[%clk 0:00:09]}  Qc5 {[%clk 0:00:39]} 33. Kf2 {[%clk 0:00:08]}  Bh6 {[%clk 0:00:38]} 34. Rc3 {[%clk 0:00:08]}  f5 {[%clk 0:00:34]} 35. Nd2 {[%clk 0:00:06]}  Bd5 {[%clk 0:00:31]} 36. Qa6 {[%clk 0:00:03]}  f4 {[%clk 0:00:29]} 37. Ke2 {[%clk 0:00:01]}  fxe3 {[%clk 0:00:28]} 38. Nf3 {[%clk 0:00:01]}  e4 {[%clk 0:00:29]} 39. Ne1 {[%clk 0:00:01]}  Qb4 {[%clk 0:00:23]} 40. c8=Q {[%clk 0:00:01]}  Qb2+ {[%clk 0:00:16]} 41. Rc2 {[%clk 0:00:01]}  Qf6 {[%clk 0:00:14]} 42. Qxf8+ {[%clk 0:00:02]}  Bxf8 {[%clk 0:00:14]} 43. Qc8 {[%clk 0:00:01]}  Qf2+ {[%clk 0:00:09]} 44. Kd1 {[%clk 0:00:02]}  e2+ {[%clk 0:00:10]} 45. Rxe2 {[%clk 0:00:02]}  Qxb6 {[%clk 0:00:11]} 46. Rd2 {[%clk 0:00:02]}  Qxb5 {[%clk 0:00:11]} 47. Qd8 {[%clk 0:00:02]}  Bf7 {[%clk 0:00:09]} 48. Nc2 {[%clk 0:00:03]}  c3 {[%clk 0:00:09]} 49. Rd4 {[%clk 0:00:01]}  Qf1+ {[%clk 0:00:09]} 50. Ne1 {[%clk 0:00:01]}  Bb3+ {[%clk 0:00:09]} 51. Kc1 {[%clk 0:00:01]}  Qxe1+ {[%clk 0:00:10]} 0-1


[Site "https://www.chess.com"]

[Event "Titled Tuesday Blitz March 15 Early 2022"]
[White "Gulecyuz, Deniz"]
[Black "Petrova, Irina"]
[WhiteFideId "30921341"]
[BlackFideId "14124122"]
[WhiteElo "1923"]
[BlackElo "1993"]
[Result "1-0"]
[Round "05"]
[TimeControl "180+1"]
[Date "2022.03.15"]
[WhiteClock "0:00:04"]
[BlackClock "0:00:03"]

1. Nf3 {[%clk 0:02:57]}  d6 {[%clk 0:03:00]} 2. g3 {[%clk 0:02:56]}  e5 {[%clk 0:03:00]} 3. Bg2 {[%clk 0:02:56]}  Nc6 {[%clk 0:03:00]} 4. d3 {[%clk 0:02:56]}  f5 {[%clk 0:03:00]} 5. c4 {[%clk 0:02:57]}  Nf6 {[%clk 0:03:01]} 6. Nc3 {[%clk 0:02:57]}  g6 {[%clk 0:03:01]} 7. O-O {[%clk 0:02:57]}  Bg7 {[%clk 0:03:01]} 8. Rb1 {[%clk 0:02:43]}  a5 {[%clk 0:02:56]} 9. a3 {[%clk 0:02:41]}  O-O {[%clk 0:02:56]} 10. b4 {[%clk 0:02:40]}  axb4 {[%clk 0:02:57]} 11. axb4 {[%clk 0:02:40]}  h6 {[%clk 0:02:56]} 12. b5 {[%clk 0:02:14]}  Ne7 {[%clk 0:02:56]} 13. Qb3 {[%clk 0:02:13]}  Be6 {[%clk 0:02:54]} 14. Rd1 {[%clk 0:02:05]}  g5 {[%clk 0:02:51]} 15. Ne1 {[%clk 0:01:55]}  c6 {[%clk 0:02:43]} 16. Nc2 {[%clk 0:01:34]}  f4 {[%clk 0:02:34]} 17. d4 {[%clk 0:01:24]}  Qe8 {[%clk 0:02:29]} 18. Ba3 {[%clk 0:01:08]}  Nf5 {[%clk 0:02:10]} 19. dxe5 {[%clk 0:01:01]}  dxe5 {[%clk 0:02:09]} 20. Bxf8 {[%clk 0:01:01]}  Bxf8 {[%clk 0:02:01]} 21. bxc6 {[%clk 0:00:52]}  bxc6 {[%clk 0:02:01]} 22. Qb7 {[%clk 0:00:50]}  Rc8 {[%clk 0:01:50]} 23. Ne4 {[%clk 0:00:41]}  Nxe4 {[%clk 0:01:45]} 24. Bxe4 {[%clk 0:00:42]}  Qh5 {[%clk 0:01:14]} 25. Bf3 {[%clk 0:00:26]}  g4 {[%clk 0:01:08]} 26. Bxc6 {[%clk 0:00:26]}  Nd6 {[%clk 0:00:57]} 27. Qa6 {[%clk 0:00:25]}  Nxc4 {[%clk 0:00:44]} 28. Bg2 {[%clk 0:00:18]}  Re8 {[%clk 0:00:36]} 29. Bd5 {[%clk 0:00:12]}  Bxd5 {[%clk 0:00:32]} 30. Rxd5 {[%clk 0:00:11]}  f3 {[%clk 0:00:15]} 31. Qxc4 {[%clk 0:00:10]}  Qh3 {[%clk 0:00:13]} 32. Ne3 {[%clk 0:00:11]}  Kh8 {[%clk 0:00:11]} 33. exf3 {[%clk 0:00:10]}  gxf3 {[%clk 0:00:11]} 34. Rb7 {[%clk 0:00:05]}  Rc8 {[%clk 0:00:09]} 35. Qf1 {[%clk 0:00:04]}  Qe6 {[%clk 0:00:06]} 36. Rdd7 {[%clk 0:00:04]}  Bc5 {[%clk 0:00:03]} 37. Qb1 {[%clk 0:00:04]} 1-0


[Site "https://www.chess.com"]

[Event "Titled Tuesday Blitz March 15 Early 2022"]
[White "Guseva, Marina"]
[Black "Maksimovic, Bojan"]
[WhiteFideId "4149351"]
[BlackFideId "14408120"]
[WhiteElo "2160"]
[BlackElo "2448"]
[Result "1-0"]
[Round "05"]
[TimeControl "180+1"]
[Date "2022.03.15"]
[WhiteClock "0:00:09"]
[BlackClock "0:00:33"]

1. d4 {[%clk 0:02:54]}  g6 {[%clk 0:03:00]} 2. Nf3 {[%clk 0:02:53]}  Bg7 {[%clk 0:03:00]} 3. Bf4 {[%clk 0:02:52]}  d6 {[%clk 0:03:00]} 4. e3 {[%clk 0:02:50]}  Nd7 {[%clk 0:03:00]} 5. h3 {[%clk 0:02:49]}  e5 {[%clk 0:03:01]} 6. Bh2 {[%clk 0:02:49]}  Nh6 {[%clk 0:03:01]} 7. Nc3 {[%clk 0:02:31]}  O-O {[%clk 0:03:01]} 8. a4 {[%clk 0:02:29]}  f5 {[%clk 0:03:00]} 9. Bc4+ {[%clk 0:02:27]}  Kh8 {[%clk 0:03:00]} 10. dxe5 {[%clk 0:02:27]}  dxe5 {[%clk 0:02:59]} 11. O-O {[%clk 0:02:21]}  a5 {[%clk 0:02:54]} 12. Bg3 {[%clk 0:02:19]}  e4 {[%clk 0:02:39]} 13. Bh4 {[%clk 0:02:00]}  Bf6 {[%clk 0:02:37]} 14. Bxf6+ {[%clk 0:01:59]}  Qxf6 {[%clk 0:02:38]} 15. Nd5 {[%clk 0:01:49]}  Qd6 {[%clk 0:02:24]} 16. Qd4+ {[%clk 0:01:32]}  Nf6 {[%clk 0:02:24]} 17. Ng5 {[%clk 0:01:21]}  c6 {[%clk 0:02:18]} 18. Nb6 {[%clk 0:00:48]}  Qxd4 {[%clk 0:02:15]} 19. exd4 {[%clk 0:00:47]}  Rb8 {[%clk 0:02:16]} 20. Rae1 {[%clk 0:00:43]}  Nhg8 {[%clk 0:02:06]} 21. f3 {[%clk 0:00:40]}  h6 {[%clk 0:02:06]} 22. Nf7+ {[%clk 0:00:40]}  Kg7 {[%clk 0:02:05]} 23. Nd6 {[%clk 0:00:39]}  exf3 {[%clk 0:01:48]} 24. Nbxc8 {[%clk 0:00:21]}  fxg2 {[%clk 0:01:48]} 25. Kxg2 {[%clk 0:00:21]}  Rbxc8 {[%clk 0:01:48]} 26. Nxc8 {[%clk 0:00:20]}  Rxc8 {[%clk 0:01:49]} 27. Bxg8 {[%clk 0:00:19]}  Kxg8 {[%clk 0:01:50]} 28. Re6 {[%clk 0:00:18]}  Kf7 {[%clk 0:01:50]} 29. Rfe1 {[%clk 0:00:17]}  Ne4 {[%clk 0:01:48]} 30. Re5 {[%clk 0:00:17]}  b6 {[%clk 0:01:48]} 31. c3 {[%clk 0:00:17]}  Kf6 {[%clk 0:01:43]} 32. Rf1 {[%clk 0:00:16]}  Nd6 {[%clk 0:01:43]} 33. Rfe1 {[%clk 0:00:16]}  Ne4 {[%clk 0:01:43]} 34. Rf1 {[%clk 0:00:16]}  Nd6 {[%clk 0:01:21]} 35. Re2 {[%clk 0:00:15]}  Rd8 {[%clk 0:01:14]} 36. b3 {[%clk 0:00:15]}  g5 {[%clk 0:01:13]} 37. Re5 {[%clk 0:00:14]}  f4 {[%clk 0:01:08]} 38. Rfe1 {[%clk 0:00:13]}  c5 {[%clk 0:00:44]} 39. Re6+ {[%clk 0:00:12]}  Kg7 {[%clk 0:00:42]} 40. dxc5 {[%clk 0:00:11]}  bxc5 {[%clk 0:00:41]} 41. Rd1 {[%clk 0:00:11]}  Nf7 {[%clk 0:00:41]} 42. Rxd8 {[%clk 0:00:10]}  Nxd8 {[%clk 0:00:42]} 43. Ra6 {[%clk 0:00:10]}  h5 {[%clk 0:00:38]} 44. Rxa5 {[%clk 0:00:10]}  Ne6 {[%clk 0:00:38]} 45. Ra6 {[%clk 0:00:10]}  Kf6 {[%clk 0:00:36]} 46. Rc6 {[%clk 0:00:09]}  g4 {[%clk 0:00:33]} 47. hxg4 {[%clk 0:00:09]}  hxg4 {[%clk 0:00:34]} 48. a5 {[%clk 0:00:09]}  Ke5 {[%clk 0:00:33]} 49. Rxe6+ {[%clk 0:00:08]}  Kxe6 {[%clk 0:00:33]} 50. a6 {[%clk 0:00:09]}  f3+ {[%clk 0:00:33]} 51. Kg3 {[%clk 0:00:09]} 1-0


[Site "https://www.chess.com"]

[Event "Titled Tuesday Blitz March 15 Early 2022"]
[White "Harikrishna, Pentala"]
[Black "Nenezic, Marko"]
[WhiteFideId "5007003"]
[BlackFideId "912123"]
[WhiteElo "2574"]
[BlackElo "2457"]
[Result "1/2-1/2"]
[Round "05"]
[TimeControl "180+1"]
[Date "2022.03.15"]
[WhiteClock "0:00:02"]
[BlackClock "0:00:18"]

1. d4 {[%clk 0:02:02]}  Nf6 {[%clk 0:02:57]} 2. Nf3 {[%clk 0:02:02]}  g6 {[%clk 0:02:57]} 3. Bg5 {[%clk 0:02:02]}  Bg7 {[%clk 0:02:58]} 4. Nbd2 {[%clk 0:02:03]}  O-O {[%clk 0:02:57]} 5. c3 {[%clk 0:02:02]}  d6 {[%clk 0:02:58]} 6. e4 {[%clk 0:02:02]}  Qe8 {[%clk 0:02:58]} 7. Bd3 {[%clk 0:02:01]}  h6 {[%clk 0:02:57]} 8. Bh4 {[%clk 0:02:01]}  e5 {[%clk 0:02:57]} 9. O-O {[%clk 0:02:01]}  Nc6 {[%clk 0:02:53]} 10. Re1 {[%clk 0:01:55]}  Nh5 {[%clk 0:02:53]} 11. dxe5 {[%clk 0:01:42]}  dxe5 {[%clk 0:02:54]} 12. a4 {[%clk 0:01:40]}  Bf6 {[%clk 0:02:25]} 13. Bxf6 {[%clk 0:01:34]}  Nxf6 {[%clk 0:02:26]} 14. Nc4 {[%clk 0:01:33]}  Kg7 {[%clk 0:02:23]} 15. b4 {[%clk 0:01:33]}  Bg4 {[%clk 0:02:22]} 16. h3 {[%clk 0:01:25]}  Bxf3 {[%clk 0:02:21]} 17. Qxf3 {[%clk 0:01:26]}  Rd8 {[%clk 0:02:19]} 18. Red1 {[%clk 0:01:21]}  Qe7 {[%clk 0:02:19]} 19. Ne3 {[%clk 0:01:19]}  Nb8 {[%clk 0:02:11]} 20. Bc4 {[%clk 0:01:10]}  c6 {[%clk 0:02:10]} 21. a5 {[%clk 0:01:08]}  Rfe8 {[%clk 0:01:36]} 22. Bb3 {[%clk 0:00:56]}  Nbd7 {[%clk 0:01:26]} 23. Rd3 {[%clk 0:00:49]}  Nf8 {[%clk 0:01:20]} 24. Rad1 {[%clk 0:00:49]}  Rxd3 {[%clk 0:01:20]} 25. Rxd3 {[%clk 0:00:50]}  Rd8 {[%clk 0:01:20]} 26. Rxd8 {[%clk 0:00:37]}  Qxd8 {[%clk 0:01:21]} 27. Nc4 {[%clk 0:00:37]}  Qb8 {[%clk 0:01:05]} 28. Qd3 {[%clk 0:00:29]}  Ne8 {[%clk 0:00:59]} 29. h4 {[%clk 0:00:23]}  h5 {[%clk 0:00:59]} 30. Qg3 {[%clk 0:00:14]}  Nd7 {[%clk 0:00:52]} 31. Ne3 {[%clk 0:00:14]}  Kf8 {[%clk 0:00:47]} 32. Qg5 {[%clk 0:00:12]}  Qd6 {[%clk 0:00:47]} 33. Qh6+ {[%clk 0:00:08]}  Ke7 {[%clk 0:00:47]} 34. Qg5+ {[%clk 0:00:06]}  Qf6 {[%clk 0:00:47]} 35. Qxf6+ {[%clk 0:00:06]}  Nexf6 {[%clk 0:00:46]} 36. f3 {[%clk 0:00:06]}  b5 {[%clk 0:00:46]} 37. axb6 {[%clk 0:00:04]}  axb6 {[%clk 0:00:47]} 38. Kf2 {[%clk 0:00:05]}  b5 {[%clk 0:00:47]} 39. Nf1 {[%clk 0:00:04]}  Ne8 {[%clk 0:00:46]} 40. c4 {[%clk 0:00:03]}  bxc4 {[%clk 0:00:40]} 41. Bxc4 {[%clk 0:00:04]}  Nd6 {[%clk 0:00:41]} 42. Nd2 {[%clk 0:00:04]}  c5 {[%clk 0:00:39]} 43. bxc5 {[%clk 0:00:04]}  Nxc5 {[%clk 0:00:40]} 44. Ke3 {[%clk 0:00:04]}  f5 {[%clk 0:00:38]} 45. Bd5 {[%clk 0:00:02]}  Kf6 {[%clk 0:00:37]} 46. g3 {[%clk 0:00:02]}  g5 {[%clk 0:00:37]} 47. hxg5+ {[%clk 0:00:02]}  Kxg5 {[%clk 0:00:37]} 48. f4+ {[%clk 0:00:02]}  exf4+ {[%clk 0:00:31]} 49. gxf4+ {[%clk 0:00:03]}  Kg6 {[%clk 0:00:30]} 50. e5 {[%clk 0:00:03]}  Nb5 {[%clk 0:00:28]} 51. Nf3 {[%clk 0:00:02]}  Nc7 {[%clk 0:00:28]} 52. Nh4+ {[%clk 0:00:02]}  Kh7 {[%clk 0:00:26]} 53. Bf7 {[%clk 0:00:01]}  Kg7 {[%clk 0:00:26]} 54. Bxh5 {[%clk 0:00:01]}  Nd5+ {[%clk 0:00:26]} 55. Kf3 {[%clk 0:00:01]}  Nd3 {[%clk 0:00:27]} 56. Nxf5+ {[%clk 0:00:01]}  Kf8 {[%clk 0:00:26]} 57. Ng3 {[%clk 0:00:01]}  N3xf4 {[%clk 0:00:26]} 58. Bg4 {[%clk 0:00:02]}  Ng6 {[%clk 0:00:26]} 59. Ke4 {[%clk 0:00:03]}  Nxe5 {[%clk 0:00:23]} 60. Kxe5 {[%clk 0:00:04]}  Ne3 {[%clk 0:00:22]} 61. Be6 {[%clk 0:00:04]}  Ke7 {[%clk 0:00:21]} 62. Ne4 {[%clk 0:00:03]}  Kd8 {[%clk 0:00:19]} 63. Kd6 {[%clk 0:00:02]}  Ke8 {[%clk 0:00:19]} 64. Ke5 {[%clk 0:00:02]}  Ke7 {[%clk 0:00:18]} 1/2-1/2


[Site "https://www.chess.com"]